fUSD/lending_fUSD_20260510
["ID","MTS","AMOUNT","RATE_DAILY","PERIOD"]
[421988480,1778417300000,-500.0,0.00014705,2]
[421988474,1778417300000,-262.44765209,0.00014599,21]
[421988469,1778417300000,-757.56694,0.0001453,2]
[421988472,1778417300000,-152.0,0.00014562,2]
[421988471,1778417300000,-152.0,0.0001454,2]
[421988470,1778417300000,-757.56694,0.0001453,2]
[421988467,1778417300000,-2000.0,0.0001453,2]
[421988468,1778417300000,-757.56695,0.0001453,2]
[421988466,1778417300000,-2000.0,0.0001453,2]
[421988464,1778417300000,-250.42598963,0.0001449,2]
[421988483,1778417300000,-500.0,0.00014705,2]
[421988473,1778417300000,-200.0,0.00014576,2]
[421988465,1778417300000,-2000.0,0.0001453,2]
[421988482,1778417300000,-500.0,0.00014705,2]
[421988486,1778417300000,-6866.08172184,0.000148,2]
[421988484,1778417300000,-500.0,0.00014705,2]
[421988501,1778417300000,-336.61407728,0.00014998,2]
[421988502,1778417300000,-500.0,0.00014998,2]
[421988500,1778417300000,-233.27936031,0.00014986,2]
[421988499,1778417300000,-150.00000001,0.00014986,2]
[421988498,1778417300000,-150.0,0.00014986,2]
[421988495,1778417300000,-937.60107184,0.000149,2]
[421988496,1778417300000,-393.97571776,0.000149,2]
[421988497,1778417300000,-265.07139353,0.00014986,2]
[421988494,1778417300000,-3934.25086887,0.000149,2]
[421988493,1778417300000,-5000.0,0.000149,2]
[421988485,1778417300000,-500.0,0.00014705,2]
[421988488,1778417300000,-1612.99,0.00014845,2]
[421988489,1778417300000,-163.87951765,0.000149,2]
[421988487,1778417300000,-1000.0,0.00014821,2]
[421988491,1778417300000,-330.12070721,0.000149,2]
[421988492,1778417300000,-636.99192303,0.000149,2]
[421988490,1778417300000,-10000.0,0.000149,2]
[421988513,1778417301000,-1070.57902925,0.00014999,5]
[421988519,1778417301000,-500.0,0.00014999,2]
[421988518,1778417301000,-501.09437893,0.00014999,2]
[421988517,1778417301000,-500.0,0.00014999,2]
[421988516,1778417301000,-1093.8672339,0.00014999,5]
[421988514,1778417301000,-201.12017322,0.00014999,5]
[421988512,1778417301000,-1059.59351199,0.00014999,5]
[421988511,1778417301000,-500.0,0.00014998,2]
[421988520,1778417301000,-500.0,0.00014999,2]
[421988509,1778417301000,-500.0,0.00014998,2]
[421988508,1778417301000,-461.42563131,0.00014998,2]
[421988507,1778417301000,-500.0,0.00014998,2]
[421988506,1778417301000,-500.0,0.00014998,2]
[421988505,1778417301000,-500.0,0.00014998,2]
[421988504,1778417301000,-602.15309196,0.00014998,2]
[421988503,1778417301000,-500.0,0.00014998,2]
[421988510,1778417301000,-500.0,0.00014998,2]
[421988522,1778417301000,-237.95833529,0.00014999,2]
[421988515,1778417301000,-1059.59351199,0.00014999,5]
[421988523,1778417301000,-507.19084567,0.00014999,2]
[421988521,1778417301000,-500.0,0.00014999,2]
[421988538,1778417301000,-500.0,0.00014999,2]
[421988537,1778417301000,-500.0,0.00014999,2]
[421988539,1778417301000,-500.0,0.00014999,2]
[421988535,1778417301000,-500.0,0.00014999,2]
[421988534,1778417301000,-500.0,0.00014999,2]
[421988536,1778417301000,-500.0,0.00014999,2]
[421988533,1778417301000,-500.0,0.00014999,2]
[421988532,1778417301000,-500.0,0.00014999,2]
[421988540,1778417301000,-500.0,0.00014999,2]
[421988529,1778417301000,-500.0,0.00014999,2]
[421988531,1778417301000,-500.0,0.00014999,2]
[421988525,1778417301000,-284.83695705,0.00014999,2]
[421988527,1778417301000,-500.0,0.00014999,2]
[421988524,1778417301000,-500.0,0.00014999,2]
[421988528,1778417301000,-500.0,0.00014999,2]
[421988541,1778417301000,-500.0,0.00014999,2]
[421988530,1778417301000,-500.0,0.00014999,2]
[421988526,1778417301000,-500.0,0.00014999,2]
[421988558,1778417302000,-500.0,0.00014999,2]
[421988551,1778417302000,-500.0,0.00014999,2]
[421988557,1778417302000,-485.84700577,0.00014999,2]
[421988556,1778417302000,-500.0,0.00014999,2]
[421988555,1778417302000,-500.0,0.00014999,2]
[421988554,1778417302000,-500.0,0.00014999,2]
[421988553,1778417302000,-500.0,0.00014999,2]
[421988550,1778417302000,-500.0,0.00014999,2]
[421988546,1778417302000,-509.68714748,0.00014999,2]
[421988548,1778417302000,-500.0,0.00014999,2]
[421988547,1778417302000,-500.0,0.00014999,2]
[421988544,1778417302000,-500.0,0.00014999,2]
[421988545,1778417302000,-290.91,0.00014999,2]
[421988543,1778417302000,-500.0,0.00014999,2]
[421988542,1778417302000,-500.0,0.00014999,2]
[421988559,1778417302000,-500.0,0.00014999,2]
[421988549,1778417302000,-500.0,0.00014999,2]
[421988561,1778417302000,-500.0,0.00014999,2]
[421988552,1778417302000,-500.0,0.00014999,2]
[421988562,1778417302000,-500.0,0.00014999,2]
[421988560,1778417302000,-500.0,0.00014999,2]
[421988577,1778417302000,-500.0,0.00014999,2]
[421988576,1778417302000,-500.0,0.00014999,2]
[421988575,1778417302000,-500.0,0.00014999,2]
[421988574,1778417302000,-500.0,0.00014999,2]
[421988572,1778417302000,-500.0,0.00014999,2]
[421988573,1778417302000,-498.31706778,0.00014999,2]
[421988571,1778417302000,-500.0,0.00014999,2]
[421988578,1778417302000,-500.0,0.00014999,2]
[421988569,1778417302000,-500.0,0.00014999,2]
[421988579,1778417302000,-500.0,0.00014999,2]
[421988568,1778417302000,-500.0,0.00014999,2]
[421988567,1778417302000,-500.0,0.00014999,2]
[421988565,1778417302000,-500.0,0.00014999,2]
[421988566,1778417302000,-500.0,0.00014999,2]
[421988564,1778417302000,-500.0,0.00014999,2]
[421988570,1778417302000,-500.0,0.00014999,2]
[421988563,1778417302000,-500.0,0.00014999,2]
[421988593,1778417303000,-500.0,0.00014999,2]
[421988590,1778417303000,-500.0,0.00014999,2]
[421988588,1778417303000,-151.0,0.00014999,2]
[421988589,1778417303000,-500.0,0.00014999,2]
[421988587,1778417303000,-500.0,0.00014999,2]
[421988584,1778417303000,-500.0,0.00014999,2]
[421988585,1778417303000,-500.0,0.00014999,2]
[421988583,1778417303000,-500.0,0.00014999,2]
[421988582,1778417303000,-500.0,0.00014999,2]
[421988580,1778417303000,-500.0,0.00014999,2]
[421988581,1778417303000,-500.0,0.00014999,2]
[421988591,1778417303000,-500.0,0.00014999,2]
[421988586,1778417303000,-500.0,0.00014999,2]
[421988592,1778417303000,-476.37915568,0.00014999,2]
[421988602,1778417303000,-151.0,0.00014999,2]
[421988596,1778417303000,-500.0,0.00014999,2]
[421988609,1778417303000,-500.0,0.00014999,2]
[421988608,1778417303000,-500.0,0.00014999,2]
[421988606,1778417303000,-151.0,0.00014999,2]
[421988607,1778417303000,-500.0,0.00014999,2]
[421988594,1778417303000,-500.0,0.00014999,2]
[421988605,1778417303000,-508.03542635,0.00014999,2]
[421988604,1778417303000,-500.0,0.00014999,2]
[421988601,1778417303000,-151.0,0.00014999,2]
[421988600,1778417303000,-277.87018493,0.00014999,2]
[421988598,1778417303000,-500.0,0.00014999,2]
[421988599,1778417303000,-500.0,0.00014999,2]
[421988597,1778417303000,-500.0,0.00014999,2]
[421988595,1778417303000,-500.0,0.00014999,2]
[421988603,1778417303000,-500.0,0.00014999,2]
[421988615,1778417304000,-300.0,0.00014999,2]
[421988611,1778417304000,-500.0,0.00014999,2]
[421988612,1778417304000,-509.43717845,0.00014999,2]
[421988613,1778417304000,-151.0,0.00014999,2]
[421988614,1778417304000,-151.0,0.00014999,2]
[421988610,1778417304000,-500.0,0.00014999,2]
[421988617,1778417304000,-151.0,0.00015,5]
[421988618,1778417304000,-157.0,0.00015,5]
[421988619,1778417304000,-310.0,0.00015,5]
[421988621,1778417304000,-664424.2899155,0.00015,2]
[421988620,1778417304000,-3038334.07014853,0.00015,2]
[421988616,1778417304000,-666.0,0.00014999,2]
[421988622,1778417305000,903.0,0.00041031,120]
[421988623,1778417351000,500.0,0.00041031,120]
[421988624,1778417357000,1891.75,0.00041031,120]
[421988630,1778417431000,-1200.0,0.00014105,2]
[421988632,1778417431000,-500.0,0.00014106,2]
[421988631,1778417431000,-300.0,0.00014105,2]
[421988646,1778417432000,-3926.01792205,0.00014195,2]
[421988653,1778417432000,-3926.01792204,0.00014648,2]
[421988650,1778417432000,-500.0,0.00014431,2]
[421988649,1778417432000,-3926.01792204,0.00014346,2]
[421988647,1778417432000,-20072.105,0.00014195,2]
[421988648,1778417432000,-2500.0,0.00014332,2]
[421988644,1778417432000,-500.0,0.00014106,2]
[421988645,1778417432000,-530.85034362,0.00014106,2]
[421988641,1778417432000,-500.0,0.00014106,2]
[421988637,1778417432000,-500.0,0.00014106,2]
[421988640,1778417432000,-500.0,0.00014106,2]
[421988643,1778417432000,-500.0,0.00014106,2]
[421988638,1778417432000,-500.0,0.00014106,2]
[421988639,1778417432000,-500.0,0.00014106,2]
[421988652,1778417432000,-164.67,0.00014612,2]
[421988636,1778417432000,-500.0,0.00014106,2]
[421988635,1778417432000,-500.0,0.00014106,2]
[421988633,1778417432000,-500.0,0.00014106,2]
[421988642,1778417432000,-500.0,0.00014106,2]
[421988655,1778417432000,-150.99,0.00014799,2]
[421988634,1778417432000,-500.0,0.00014106,2]
[421988651,1778417432000,-3926.01792204,0.00014497,2]
[421988674,1778417432000,-416.07694567,0.00015,2]
[421988673,1778417432000,-43365.22614575,0.00015,2]
[421988671,1778417432000,-59157.91184554,0.00015,2]
[421988672,1778417432000,-196425.76535615,0.00015,2]
[421988654,1778417432000,-3926.01792204,0.00014799,2]
[421988669,1778417432000,-150.0,0.00014999,2]
[421988668,1778417432000,-150.40022105,0.00014999,2]
[421988665,1778417432000,-500.0,0.00014999,2]
[421988666,1778417432000,-500.0,0.00014999,2]
[421988670,1778417432000,-352281.09835436,0.00015,2]
[421988664,1778417432000,-500.0,0.00014999,2]
[421988663,1778417432000,-500.0,0.00014999,2]
[421988662,1778417432000,-3926.01792204,0.00014949,2]
[421988660,1778417432000,-5000.0,0.000149,2]
[421988661,1778417432000,-3416.24459484,0.000149,2]
[421988657,1778417432000,-1577.09,0.00014799,2]
[421988658,1778417432000,-850.4,0.00014799,2]
[421988659,1778417432000,-999.99,0.00014799,2]
[421988656,1778417432000,-299.99,0.00014799,2]
[421988667,1778417432000,-500.0,0.00014999,2]
[421988676,1778417433000,-594.51805,0.00014095,2]
[421988675,1778417433000,-2103.43825553,0.00014095,2]
[421988678,1778417433000,-933.29910589,0.00014095,2]
[421988680,1778417433000,-1547.40244283,0.00014095,2]
[421988677,1778417433000,-642.03266483,0.00014095,2]
[421988681,1778417433000,-525.44413228,0.00014095,2]
[421988679,1778417433000,-2843.20299785,0.00014095,2]
[421988695,1778417438000,-14425.47165801,0.00014095,2]
[421988694,1778417438000,-25671.02966305,0.00014095,2]
[421988693,1778417438000,-788.45865194,0.00014095,2]
[421988719,1778417440000,-707.97489266,0.00014095,2]
[421988720,1778417440000,-612.25014203,0.00014095,2]
[421988721,1778417440000,-420.13838643,0.00014095,2]
[421988722,1778417440000,-2740.0,0.00014095,2]
[421988723,1778417440000,-8029.9747812,0.00014095,2]
[421988772,1778417443000,-1196.39056998,0.00015531,2]
[421988748,1778417443000,-1000.0,0.00015021,2]
[421988734,1778417443000,-108232.4164515,0.00015,2]
[421988746,1778417443000,-168.0,0.00015,2]
[421988728,1778417443000,-389843.34565985,0.00014095,2]
[421988737,1778417443000,-151.0,0.00015,2]
[421988751,1778417443000,-3926.01792204,0.000151,2]
[421988754,1778417443000,-371.69,0.00015217,2]
[421988755,1778417443000,-166.76119792,0.0001522,2]
[421988753,1778417443000,-333.33333,0.000152,2]
[421988759,1778417443000,-1461.43381704,0.00015333,2]
[421988779,1778417443000,-333.33333,0.000156,2]
[421988758,1778417443000,-1763.95996881,0.00015289,2]
[421988761,1778417443000,-193.452955,0.00015353,7]
[421988749,1778417443000,-160.0,0.00015066,2]
[421988752,1778417443000,-255.0,0.00015119,2]
[421988744,1778417443000,-239.55702,0.00015,2]
[421988740,1778417443000,-151.0,0.00015,2]
[421988776,1778417443000,-1060.8797789,0.00015557,2]
[421988738,1778417443000,-151.0,0.00015,2]
[421988741,1778417443000,-151.0,0.00015,2]
[421988743,1778417443000,-151.0,0.00015,2]
[421988733,1778417443000,-129991.8285896,0.00014938,2]
[421988750,1778417443000,-152.68144015,0.00015068,2]
[421988736,1778417443000,-151.0,0.00015,2]
[421988742,1778417443000,-151.0,0.00015,2]
[421988739,1778417443000,-151.0,0.00015,2]
[421988747,1778417443000,-169.21328639,0.00015,2]
[421988729,1778417443000,-165758.88521562,0.00014095,2]
[421988730,1778417443000,-657.26,0.00014173,2]
[421988731,1778417443000,-657.26,0.00014528,2]
[421988745,1778417443000,-333.33333,0.00015,2]
[421988732,1778417443000,-657.26,0.00014882,2]
[421988768,1778417443000,-160.0,0.00015463,7]
[421988735,1778417443000,-2937.721,0.00015,2]
[421988777,1778417443000,-1500.0,0.00015568,2]
[421988786,1778417443000,-193.50224669,0.00015666,2]
[421988787,1778417443000,-1537.0,0.00015666,2]
[421988785,1778417443000,-151.0,0.00015666,2]
[421988791,1778417443000,-161.54718026,0.00015666,2]
[421988789,1778417443000,-152.0,0.00015666,2]
[421988790,1778417443000,-152.0,0.00015666,2]
[421988788,1778417443000,-1537.0,0.00015666,2]
[421988798,1778417443000,-1196.39056998,0.00015777,2]
[421988784,1778417443000,-151.0,0.00015666,2]
[421988794,1778417443000,-1102.53031965,0.00015673,2]
[421988795,1778417443000,-505.71815755,0.00015693,2]
[421988792,1778417443000,-152.0,0.00015666,2]
[421988796,1778417443000,-1060.8797789,0.00015694,2]
[421988797,1778417443000,-1102.53031965,0.00015759,2]
[421988769,1778417443000,-200.753065,0.00015463,7]
[421988783,1778417443000,-151.0,0.00015666,2]
[421988781,1778417443000,-1060.8797789,0.00015653,2]
[421988793,1778417443000,-1102.53031965,0.00015669,2]
[421988780,1778417443000,-1102.53031965,0.00015647,2]
[421988782,1778417443000,-7519.03599069,0.00015666,2]
[421988762,1778417443000,-1461.43381704,0.00015381,2]
[421988771,1778417443000,-1680.0,0.00015516,2]
[421988760,1778417443000,-1461.43381704,0.00015346,2]
[421988766,1778417443000,-164.67,0.00015416,2]
[421988778,1778417443000,-657.26,0.00015591,2]
[421988763,1778417443000,-1461.43381704,0.00015397,2]
[421988757,1778417443000,-3926.01792204,0.00015251,2]
[421988770,1778417443000,-241.50613,0.00015463,7]
[421988773,1778417443000,-1060.8797789,0.00015536,2]
[421988764,1778417443000,-333.33334,0.000154,2]
[421988765,1778417443000,-3926.01792204,0.00015402,2]
[421988774,1778417443000,-1196.39056998,0.0001554,2]
[421988756,1778417443000,-657.26,0.00015236,2]
[421988767,1778417443000,-1461.43381704,0.00015456,2]
[421988775,1778417443000,-3926.01792204,0.00015553,2]
[421988842,1778417444000,-1396.83783788,0.00016488,2]
[421988834,1778417444000,-500.0,0.00016438,2]
[421988837,1778417444000,-165.7412106,0.00016438,2]
[421988838,1778417444000,-500.0,0.00016438,2]
[421988836,1778417444000,-500.0,0.00016438,2]
[421988832,1778417444000,-300.0,0.00016438,3]
[421988835,1778417444000,-500.0,0.00016438,2]
[421988831,1778417444000,-300.0,0.00016438,3]
[421988829,1778417444000,-300.0,0.00016438,3]
[421988840,1778417444000,-150.61749599,0.00016438,2]
[421988830,1778417444000,-300.0,0.00016438,3]
[421988833,1778417444000,-276.3838178,0.00016438,2]
[421988841,1778417444000,-500.6821392,0.00016438,2]
[421988855,1778417444000,-502.83862869,0.00016986,2]
[421988853,1778417444000,-502.41572104,0.00016986,2]
[421988843,1778417444000,-1612.99,0.00016494,2]
[421988845,1778417444000,-1396.83783788,0.00016667,2]
[421988844,1778417444000,-195.580813,0.00016587,7]
[421988852,1778417444000,-715.58246394,0.00016986,2]
[421988846,1778417444000,-1396.83783788,0.00016763,2]
[421988850,1778417444000,-152.28289942,0.00016986,2]
[421988847,1778417444000,-262.719738,0.00016867,7]
[421988848,1778417444000,-244.54444,0.00016867,2]
[421988851,1778417444000,-1000.0,0.00016986,2]
[421988854,1778417444000,-711.982935,0.00016986,2]
[421988828,1778417444000,-300.0,0.00016438,3]
[421988839,1778417444000,-165.55298684,0.00016438,2]
[421988825,1778417444000,-500.0,0.00016438,2]
[421988818,1778417444000,-1396.83783788,0.00016421,2]
[421988824,1778417444000,-500.0,0.00016438,2]
[421988799,1778417444000,-2719.92608535,0.00015779,2]
[421988802,1778417444000,-2719.92608535,0.00015823,2]
[421988801,1778417444000,-333.33334,0.000158,2]
[421988800,1778417444000,-1060.8797789,0.00015788,2]
[421988803,1778417444000,-164.74,0.00015898,2]
[421988806,1778417444000,-1396.83783788,0.00015963,2]
[421988805,1778417444000,-155.0,0.0001591,2]
[421988804,1778417444000,-211.59,0.000159,2]
[421988811,1778417444000,-333.33333,0.00016,2]
[421988807,1778417444000,-1396.83783788,0.00015974,2]
[421988857,1778417444000,-1041.28518482,0.00017052,2]
[421988808,1778417444000,-1396.83783788,0.00015988,2]
[421988827,1778417444000,-500.0,0.00016438,2]
[421988815,1778417444000,-433.0,0.00016323,2]
[421988812,1778417444000,-285.03778927,0.00016116,2]
[421988816,1778417444000,-1396.83783788,0.00016339,2]
[421988809,1778417444000,-195.23,0.00015998,2]
[421988814,1778417444000,-273.754179,0.00016236,7]
[421988813,1778417444000,-164.67,0.00016219,2]
[421988810,1778417444000,-300.0,0.00016,2]
[421988820,1778417444000,-471.73764346,0.00016438,2]
[421988821,1778417444000,-186.916363,0.00016438,2]
[421988819,1778417444000,-1396.83783788,0.00016427,2]
[421988822,1778417444000,-500.0,0.00016438,2]
[421988823,1778417444000,-500.0,0.00016438,2]
[421988826,1778417444000,-500.0,0.00016438,2]
[421988817,1778417444000,-2503.35069015,0.00016399,2]
[421988856,1778417444000,-164.67,0.00017023,2]
[421988849,1778417444000,-1041.28518482,0.00016951,2]
[421988860,1778417444000,-371.69,0.0001712,2]
[421988884,1778417444000,-1612.99,0.00018143,2]
[421988890,1778417444000,-500.0,0.00018756,2]
[421988893,1778417444000,-554.54190648,0.00019,2]
[421988892,1778417444000,-2722.0,0.00018774,2]
[421988894,1778417444000,-224.60770375,0.00019,2]
[421988898,1778417444000,-371.69,0.00019022,2]
[421988902,1778417444000,-330.12070717,0.000194,2]
[421988911,1778417444000,-160.05861465,0.0002,2]
[421988895,1778417444000,-160.47016667,0.00019,2]
[421988908,1778417444000,-2704.45732984,0.0002,2]
[421988904,1778417444000,-1612.99,0.00019793,2]
[421988910,1778417444000,-829.0,0.0002,2]
[421988912,1778417444000,-160.05861465,0.0002,2]
[421988905,1778417444000,-1500.0,0.00019851,2]
[421988897,1778417444000,-19343.35768721,0.00019,2]
[421988899,1778417444000,-1000.0,0.00019304,2]
[421988909,1778417444000,-7000.05132404,0.0002,2]
[421988903,1778417444000,-169.1,0.00019737,2]
[421988913,1778417444000,-160.05861464,0.0002,2]
[421988901,1778417444000,-150.0,0.00019324,2]
[421988896,1778417444000,-829.0,0.00019,2]
[421988900,1778417444000,-3099.70031824,0.00019312,2]
[421988906,1778417444000,-200.0,0.0002,2]
[421988915,1778417444000,-948.0,0.0002,2]
[421988914,1778417444000,-1052.0,0.0002,2]
[421988916,1778417444000,-2008.5716395,0.00020399,2]
[421988861,1778417444000,-1089.31569039,0.00017202,2]
[421988888,1778417444000,-214.7734975,0.0001852,2]
[421988889,1778417444000,-215.963,0.00018529,2]
[421988907,1778417444000,-13074.60135531,0.0002,2]
[421988880,1778417444000,-350.0,0.00018,2]
[421988885,1778417444000,-217.52297192,0.00018145,2]
[421988858,1778417444000,-2351.0,0.00017067,2]
[421988859,1778417444000,-1041.28518482,0.00017078,2]
[421988863,1778417444000,-1247.24354002,0.00017421,2]
[421988862,1778417444000,-756.07136114,0.00017248,2]
[421988866,1778417444000,-1247.24354002,0.0001749,2]
[421988865,1778417444000,-1015.69089987,0.00017466,2]
[421988868,1778417444000,-1247.24354002,0.00017523,2]
[421988867,1778417444000,-1015.69089987,0.00017511,2]
[421988870,1778417444000,-1015.69089987,0.00017539,2]
[421988869,1778417444000,-1015.69089987,0.00017527,2]
[421988872,1778417444000,-686.51,0.00017572,2]
[421988871,1778417444000,-1241.64,0.00017572,2]
[421988864,1778417444000,-1247.24354002,0.00017421,2]
[421988874,1778417444000,-467.0,0.00017639,2]
[421988873,1778417444000,-1015.69089987,0.00017584,2]
[421988887,1778417444000,-208.10422263,0.00018461,2]
[421988878,1778417444000,-1205.27261169,0.00018,2]
[421988875,1778417444000,-1015.69089987,0.00017768,2]
[421988876,1778417444000,-928.23,0.000178,2]
[421988882,1778417444000,-492.8729264,0.00018052,2]
[421988877,1778417444000,-1237.00321085,0.0001789,2]
[421988881,1778417444000,-150.0,0.00018001,2]
[421988891,1778417444000,-3416.24459481,0.00018757,2]
[421988879,1778417444000,-1043.86844158,0.00018,2]
[421988886,1778417444000,-261.0275663,0.00018145,2]
[421988883,1778417444000,-195.23,0.00018084,2]
[421988954,1778417445000,-501.74591922,0.00024409,2]
[421988965,1778417445000,-564.0,0.00024658,2]
[421988959,1778417445000,-500.0,0.00024627,2]
[421988949,1778417445000,-686.51,0.00024174,2]
[421988958,1778417445000,-508.0,0.000246,2]
[421988961,1778417445000,-282.0,0.00024658,2]
[421988953,1778417445000,-1000.0,0.000244,2]
[421988952,1778417445000,-214.7734975,0.000243,7]
[421988951,1778417445000,-10757.98891608,0.0002429,7]
[421988950,1778417445000,-1151.53426752,0.0002421,2]
[421988957,1778417445000,-314.0,0.000246,2]
[421988955,1778417445000,-501.46755329,0.00024409,2]
[421988960,1778417445000,-500.0,0.00024627,2]
[421988972,1778417445000,-150.0,0.00024938,2]
[421988963,1778417445000,-156.0,0.00024658,2]
[421988964,1778417445000,-647.14556478,0.00024658,2]
[421988956,1778417445000,-500.0,0.00024409,2]
[421988967,1778417445000,-150.0,0.00024658,2]
[421988970,1778417445000,-157.66,0.00024658,2]
[421988973,1778417445000,-150.0,0.00024938,2]
[421988974,1778417445000,-165.403,0.00024938,2]
[421988975,1778417445000,-250.0,0.00024938,2]
[421988977,1778417445000,-1000.0,0.00024957,2]
[421988966,1778417445000,-403.0,0.00024658,2]
[421988968,1778417445000,-1000.0,0.00024658,2]
[421988971,1778417445000,-150.295,0.00024938,2]
[421988947,1778417445000,-1241.64,0.00024174,2]
[421988962,1778417445000,-189.40855713,0.00024658,2]
[421988948,1778417445000,-1573.06,0.00024174,2]
[421988921,1778417445000,-160.0,0.00022,2]
[421988945,1778417445000,-836.0,0.00024,2]
[421988976,1778417445000,-166.732,0.00024938,2]
[421988918,1778417445000,-371.69,0.00020924,2]
[421988920,1778417445000,-5000.0,0.00021918,2]
[421988923,1778417445000,-243.39064591,0.0002211,2]
[421988919,1778417445000,-829.0,0.00021,2]
[421988924,1778417445000,-449.37,0.00022466,2]
[421988917,1778417445000,-195.22,0.00020866,2]
[421988922,1778417445000,-829.0,0.00022,2]
[421988925,1778417445000,-880.65,0.00022466,2]
[421988927,1778417445000,-3652.61465637,0.000226,2]
[421988926,1778417445000,-444.81,0.00022466,2]
[421988930,1778417445000,-371.69,0.00022826,2]
[421988936,1778417445000,-150.68,0.00023232,2]
[421988946,1778417445000,-393.2,0.0002411,2]
[421988929,1778417445000,-530.18764121,0.0002271,2]
[421988935,1778417445000,-150.68,0.00023232,2]
[421988931,1778417445000,-829.0,0.00023,2]
[421988928,1778417445000,-3416.24459481,0.00022614,2]
[421988933,1778417445000,-618.81262659,0.0002314,2]
[421988934,1778417445000,-150.68,0.00023232,2]
[421988940,1778417445000,-452.536,0.00023655,2]
[421988937,1778417445000,-150.68,0.00023232,14]
[421988939,1778417445000,-3539.0,0.00023655,2]
[421988938,1778417445000,-1387.346,0.00023655,2]
[421988941,1778417445000,-624.0,0.00023655,2]
[421988942,1778417445000,-1269.0,0.00023655,2]
[421988944,1778417445000,-330.12070717,0.000239,2]
[421988943,1778417445000,-219.0,0.00023712,2]
[421988932,1778417445000,-150.68,0.0002306,14]
[421988978,1778417445000,-7213.7318993,0.00025,2]
[421988969,1778417445000,-158.43,0.00024658,2]
[421988980,1778417445000,-169.3128186,0.00025,2]
[421989013,1778417445000,-201.6,0.00027062,2]
[421989032,1778417445000,-151.0,0.00027397,2]
[421989030,1778417445000,-151.0,0.00027397,2]
[421989023,1778417445000,-8225.153718,0.0002739,2]
[421989021,1778417445000,-503.42120933,0.00027373,2]
[421989015,1778417445000,-1335.57,0.000272,7]
[421989022,1778417445000,-4163.50697488,0.0002739,2]
[421989017,1778417445000,-3010.80235378,0.00027367,2]
[421989024,1778417445000,-150.0,0.00027397,2]
[421989034,1778417445000,-151.0,0.00027397,2]
[421989016,1778417445000,-168.17,0.00027204,2]
[421989019,1778417445000,-500.0,0.00027373,2]
[421989029,1778417445000,-151.0,0.00027397,2]
[421989036,1778417445000,-151.0,0.00027397,2]
[421989031,1778417445000,-151.0,0.00027397,2]
[421989033,1778417445000,-151.0,0.00027397,2]
[421989014,1778417445000,-3000.0,0.00027149,2]
[421989027,1778417445000,-1500.0,0.00027397,2]
[421989020,1778417445000,-500.0,0.00027373,2]
[421989025,1778417445000,-211.12867234,0.00027397,2]
[421989026,1778417445000,-150.0,0.00027397,2]
[421989018,1778417445000,-500.0,0.00027373,2]
[421989028,1778417445000,-274.51,0.00027397,2]
[421989037,1778417445000,-11631.63,0.00027397,10]
[421989038,1778417445000,-9693.03,0.00027397,10]
[421989039,1778417445000,-160.89,0.000274,7]
[421989040,1778417445000,-174.29,0.000274,7]
[421989006,1778417445000,-158.43,0.00026997,7]
[421989003,1778417445000,-748.001,0.00026655,2]
[421989035,1778417445000,-264.132818,0.00027397,2]
[421989010,1778417445000,-530.0,0.00027,2]
[421989008,1778417445000,-250.0,0.00027,2]
[421988979,1778417445000,-2226.65218536,0.00025,2]